[Event "Vladimir Bato Kontic Memorial 2021"]
[White "Bogosavljevic, Boban"]
[Black "Niemann, Hans Moke"]
[WhiteFideId "931152"]
[BlackFideId "2093596"]
[WhiteElo "2523"]
[BlackElo "2508"]
[Result "1/2-1/2"]
[Round "04"]
[TimeControl "5400+30"]
[Date "Sun Apr 18 2021"]
[WhiteClock "0:02:01"]
[BlackClock "0:44:52"]

1. Nf3 {[%clk 0:00:00]}  d5 {[%clk 1:30:01]} 2. g3 {[%clk 1:29:40]}  c5 {[%clk 1:30:03]} 3. Bg2 {[%clk 1:30:06]}  e6 {[%clk 1:30:20]} 4. O-O {[%clk 1:30:16]}  Nf6 {[%clk 1:30:41]} 5. b3 {[%clk 1:25:12]}  Nc6 {[%clk 1:27:51]} 6. Bb2 {[%clk 1:24:59]}  Bd6 {[%clk 1:26:42]} 7. d4 {[%clk 1:20:02]}  cxd4 {[%clk 1:25:49]} 8. Nxd4 {[%clk 1:20:25]}  O-O {[%clk 1:25:49]} 9. c4 {[%clk 1:15:53]}  Nxd4 {[%clk 1:23:42]} 10. Qxd4 {[%clk 1:14:41]}  e5 {[%clk 1:23:42]} 11. Qd3 {[%clk 1:12:49]}  dxc4 {[%clk 1:23:13]} 12. Qxc4 {[%clk 1:09:41]}  Qb6 {[%clk 1:22:10]} 13. Nc3 {[%clk 1:09:41]}  a6 {[%clk 1:12:35]} 14. Nd5 {[%clk 0:47:56]}  Nxd5 {[%clk 1:12:47]} 15. Qxd5 {[%clk 0:48:23]}  Re8 {[%clk 1:06:58]} 16. Rfd1 {[%clk 0:44:34]}  Bc5 {[%clk 1:06:58]} 17. e3 {[%clk 0:44:49]}  Bg4 {[%clk 0:57:17]} 18. Rdc1 {[%clk 0:44:49]}  Rac8 {[%clk 0:53:38]} 19. h3 {[%clk 0:37:06]}  Be6 {[%clk 0:50:04]} 20. Qxb7 {[%clk 0:37:19]}  Qa5 {[%clk 0:50:04]} 21. Bxe5 {[%clk 0:37:19]}  Ba3 {[%clk 0:47:03]} 22. Bc7 {[%clk 0:24:17]}  Qh5 {[%clk 0:42:24]} 23. g4 {[%clk 0:21:08]}  Qg6 {[%clk 0:42:16]} 24. Rc6 {[%clk 0:20:52]}  h5 {[%clk 0:42:36]} 25. Bg3 {[%clk 0:11:42]}  hxg4 {[%clk 0:42:21]} 26. hxg4 {[%clk 0:09:49]}  Bb2 {[%clk 0:42:30]} 27. Re1 {[%clk 0:10:01]}  Qxg4 {[%clk 0:41:13]} 28. Qxa6 {[%clk 0:10:01]}  Ra8 {[%clk 0:40:54]} 29. Qb5 {[%clk 0:08:14]}  Bd7 {[%clk 0:38:45]} 30. Qc4 {[%clk 0:07:47]}  Rxa2 {[%clk 0:38:45]} 31. Qxg4 {[%clk 0:07:57]}  Bxg4 {[%clk 0:39:36]} 32. Rc2 {[%clk 0:07:41]}  Rc8 {[%clk 0:39:36]} 33. Rxc8+ {[%clk 0:07:09]}  Bxc8 {[%clk 0:40:07]} 34. b4 {[%clk 0:06:38]}  Ba6 {[%clk 0:40:07]} 35. Bf1 {[%clk 0:06:38]}  Kf8 {[%clk 0:33:33]} 36. b5 {[%clk 0:01:59]}  Bb7 {[%clk 0:33:40]} 37. b6 {[%clk 0:02:03]}  Ra5 {[%clk 0:33:26]} 38. Rd1 {[%clk 0:00:32]}  Ke8 {[%clk 0:33:08]} 39. Bc7 {[%clk 0:00:32]}  Rg5+ {[%clk 0:31:55]} 40. Kh2 {[%clk 0:15:56]}  Be5+ {[%clk 0:31:55]} 41. Bxe5 {[%clk 0:13:17]}  Rxe5 {[%clk 0:47:32]} 42. Bh3 {[%clk 0:12:38]}  Rh5 {[%clk 0:46:19]} 43. Kg3 {[%clk 0:08:36]}  Rh6 {[%clk 0:46:44]} 44. Rb1 {[%clk 0:09:02]}  Rg6+ {[%clk 0:46:44]} 45. Kh2 {[%clk 0:08:14]}  Rh6 {[%clk 0:45:53]} 46. f4 {[%clk 0:05:30]}  Ke7 {[%clk 0:46:04]} 47. Kg3 {[%clk 0:05:35]}  Rg6+ {[%clk 0:46:23]} 48. Kf2 {[%clk 0:05:58]}  Rh6 {[%clk 0:46:44]} 49. Bg4 {[%clk 0:05:42]}  Rh2+ {[%clk 0:46:36]} 50. Kg3 {[%clk 0:06:07]}  Rg2+ {[%clk 0:45:26]} 51. Kh3 {[%clk 0:06:27]}  Rc2 {[%clk 0:45:26]} 52. Ra1 {[%clk 0:06:39]}  Kd6 {[%clk 0:43:12]} 53. Ra7 {[%clk 0:06:48]}  Bc6 {[%clk 0:43:12]} 54. Rxf7 {[%clk 0:04:56]}  Rc3 {[%clk 0:43:48]} 55. Rxg7 {[%clk 0:04:34]}  Rxe3+ {[%clk 0:44:16]} 56. Kh4 {[%clk 0:04:59]}  Rb3 {[%clk 0:44:43]} 57. Rg6+ {[%clk 0:03:12]}  Kc5 {[%clk 0:45:12]} 58. Rg5+ {[%clk 0:02:03]}  Kd6 {[%clk 0:44:49]} 59. f5 {[%clk 0:01:48]}  Rxb6 {[%clk 0:44:26]} 60. f6 {[%clk 0:02:17]}  Rb8 {[%clk 0:43:48]} 61. Kh5 {[%clk 0:02:23]}  Rh8+ {[%clk 0:42:44]} 62. Kg6 {[%clk 0:02:45]}  Rg8+ {[%clk 0:42:44]} 63. Kh6 {[%clk 0:02:45]}  Rxg5 {[%clk 0:43:07]} 64. Kxg5 {[%clk 0:03:41]}  Bd5 {[%clk 0:43:24]} 65. Kg6 {[%clk 0:04:00]}  Ke5 {[%clk 0:42:45]} 66. Kg7 {[%clk 0:04:26]}  Kf4 {[%clk 0:42:37]} 67. Be2 {[%clk 0:02:45]}  Kg5 {[%clk 0:42:59]} 68. Bf3 {[%clk 0:03:08]}  Be6 {[%clk 0:43:14]} 69. Bc6 {[%clk 0:03:36]}  Bb3 {[%clk 0:43:12]} 70. Be8 {[%clk 0:03:36]}  Bc4 {[%clk 0:43:12]} 71. Bf7 {[%clk 0:04:32]}  Be2 {[%clk 0:43:55]} 72. Bd5 {[%clk 0:03:14]}  Bh5 {[%clk 0:44:19]} 73. Bf3 {[%clk 0:01:36]}  Bg6 {[%clk 0:44:27]} 74. Be4 {[%clk 0:01:33]}  Bh5 {[%clk 0:44:52]} 75. Bf3 {[%clk 0:02:01]} 1/2-1/2

[Event "New in Chess Classic Prelims 2021"]
[White "Nakamura, Hikaru"]
[Black "Praggnanandhaa, R"]
[WhiteFideId "2016192"]
[BlackFideId "25059530"]
[WhiteElo "2736"]
[BlackElo "2608"]
[Result "1/2-1/2"]
[Round "14"]
[TimeControl "900+10"]
[Date "Mon Apr 26 2021"]
[WhiteClock "0:03:56"]
[BlackClock "0:00:00"]

1. Nf3 {[%clk 0:15:20]}  d5 {[%clk 0:15:20]} 2. g3 {[%clk 0:15:28]}  c5 {[%clk 0:15:25]} 3. Bg2 {[%clk 0:15:30]}  Nc6 {[%clk 0:15:33]} 4. d4 {[%clk 0:15:39]}  Nf6 {[%clk 0:15:37]} 5. O-O {[%clk 0:15:43]}  e6 {[%clk 0:15:46]} 6. c4 {[%clk 0:14:59]}  dxc4 {[%clk 0:15:53]} 7. dxc5 {[%clk 0:15:08]}  Qxd1 {[%clk 0:16:02]} 8. Rxd1 {[%clk 0:00:00]}  Bxc5 {[%clk 0:16:11]} 9. Nbd2 {[%clk 0:00:09]}  c3 {[%clk 0:16:20]} 10. bxc3 {[%clk 0:00:19]}  O-O {[%clk 0:16:29]} 11. Bb2 {[%clk 0:00:27]}  Bd7 {[%clk 0:16:12]} 12. c4 {[%clk 0:00:34]}  Be7 {[%clk 0:16:14]} 13. Nb3 {[%clk 0:00:42]}  Rfc8 {[%clk 0:16:21]} 14. Bxf6 {[%clk 0:14:36]}  Bxf6 {[%clk 0:16:28]} 15. Rxd7 {[%clk 0:14:45]}  Bxa1 {[%clk 0:16:37]} 16. Nxa1 {[%clk 0:13:56]}  Rd8 {[%clk 0:16:45]} 17. Rd2 {[%clk 0:13:21]}  Ne5 {[%clk 0:16:15]} 18. Nb3 {[%clk 0:13:09]}  Nxc4 {[%clk 0:16:09]} 19. Rc2 {[%clk 0:13:18]}  Rd1+ {[%clk 0:15:03]} 20. Bf1 {[%clk 0:13:26]}  Rc8 {[%clk 0:13:44]} 21. Nbd2 {[%clk 0:11:43]}  b5 {[%clk 0:13:19]} 22. a4 {[%clk 0:11:57]}  Nb6 {[%clk 0:11:02]} 23. Rxc8+ {[%clk 0:12:01]}  Nxc8 {[%clk 0:11:02]} 24. axb5 {[%clk 0:12:11]}  Nd6 {[%clk 0:11:11]} 25. e3 {[%clk 0:12:00]}  Nxb5 {[%clk 0:11:18]} 26. Kg2 {[%clk 0:12:09]}  Nc3 {[%clk 0:10:54]} 27. Nc4 {[%clk 0:11:17]}  Ra1 {[%clk 0:10:43]} 28. Nd4 {[%clk 0:03:17]}  Ra2 {[%clk 0:10:48]} 29. Bd3 {[%clk 0:03:19]}  a5 {[%clk 0:10:14]} 30. Nc2 {[%clk 0:03:05]}  a4 {[%clk 0:05:13]} 31. Kf1 {[%clk 0:03:20]}  e5 {[%clk 0:04:48]} 32. f3 {[%clk 0:05:43]}  Nd5 {[%clk 0:02:32]} 33. Ke1 {[%clk 0:05:55]}  a3 {[%clk 0:01:59]} 34. Kd1 {[%clk 0:01:33]}  Rxc2 {[%clk 0:01:45]} 35. Bxh7+ {[%clk 0:01:40]}  Kxh7 {[%clk 0:01:52]} 36. Kxc2 {[%clk 0:01:03]}  e4 {[%clk 0:01:50]} 37. fxe4 {[%clk 0:01:00]}  a2 {[%clk 0:01:58]} 38. Kb2 {[%clk 0:01:06]}  Nc3 {[%clk 0:02:07]} 39. Nd2 {[%clk 0:00:00]}  Kg6 {[%clk 0:01:38]} 40. Nf3 {[%clk 0:02:30]}  Kf6 {[%clk 0:00:53]} 41. Ka1 {[%clk 0:02:27]}  g5 {[%clk 0:00:52]} 42. g4 {[%clk 0:02:18]}  Nxe4 {[%clk 0:00:54]} 43. Kxa2 {[%clk 0:02:24]}  Nf2 {[%clk 0:01:02]} 44. Kb3 {[%clk 0:02:26]}  Nxg4 {[%clk 0:01:07]} 45. h4 {[%clk 0:02:35]}  gxh4 {[%clk 0:01:14]} 46. Nxh4 {[%clk 0:00:00]}  Nxe3 {[%clk 0:01:21]} 47. Kc3 {[%clk 0:02:53]}  Kg5 {[%clk 0:01:25]} 48. Nf3+ {[%clk 0:03:02]}  Kf4 {[%clk 0:01:33]} 49. Nd4 {[%clk 0:03:06]}  Ke4 {[%clk 0:01:14]} 50. Nb5 {[%clk 0:03:15]}  Nf5 {[%clk 0:01:07]} 51. Kd2 {[%clk 0:03:18]}  Kf3 {[%clk 0:01:16]} 52. Kd3 {[%clk 0:03:23]}  Ng3 {[%clk 0:01:10]} 53. Nd6 {[%clk 0:03:29]}  f6 {[%clk 0:01:19]} 54. Ne8 {[%clk 0:03:38]}  f5 {[%clk 0:01:27]} 55. Ng7 {[%clk 0:03:47]}  Kf4 {[%clk 0:01:32]} 56. Nxf5 {[%clk 0:03:56]}  Kxf5 {[%clk 0:00:00]} 1/2-1/2

[Event "Champions Chess Tour FTX Crypto Cup Prelims 2021"]
[White "Ding, Liren"]
[Black "Caruana, Fabiano"]
[WhiteFideId "8603677"]
[BlackFideId "2020009"]
[WhiteElo "2836"]
[BlackElo "2773"]
[Result "1/2-1/2"]
[Round "11"]
[TimeControl "900+10"]
[Date "Tue May 25 2021"]
[WhiteClock "0:00:46"]
[BlackClock "0:01:04"]

1. Nf3 {[%clk 0:15:20]}  d5 {[%clk 0:15:20]} 2. g3 {[%clk 0:15:25]}  c5 {[%clk 0:15:17]} 3. Bg2 {[%clk 0:15:33]}  Nc6 {[%clk 0:15:20]} 4. d4 {[%clk 0:15:37]}  Nf6 {[%clk 0:15:28]} 5. O-O {[%clk 0:15:44]}  cxd4 {[%clk 0:15:35]} 6. Nxd4 {[%clk 0:15:51]}  e5 {[%clk 0:15:44]} 7. Nxc6 {[%clk 0:16:00]}  bxc6 {[%clk 0:15:53]} 8. c4 {[%clk 0:16:09]}  Be6 {[%clk 0:15:56]} 9. Bg5 {[%clk 0:15:49]}  Rc8 {[%clk 0:15:04]} 10. Qa4 {[%clk 0:13:16]}  Qd7 {[%clk 0:14:41]} 11. Bxf6 {[%clk 0:13:23]}  gxf6 {[%clk 0:14:49]} 12. e3 {[%clk 0:12:54]}  Rb8 {[%clk 0:12:34]} 13. cxd5 {[%clk 0:07:26]}  cxd5 {[%clk 0:12:41]} 14. Qxd7+ {[%clk 0:07:08]}  Kxd7 {[%clk 0:12:50]} 15. Nc3 {[%clk 0:07:17]}  d4 {[%clk 0:10:27]} 16. exd4 {[%clk 0:08:18]}  Rxb2 {[%clk 0:10:36]} 17. Rfd1 {[%clk 0:07:53]}  Bb4 {[%clk 0:08:24]} 18. Na4 {[%clk 0:03:57]}  Rxa2 {[%clk 0:05:08]} 19. d5 {[%clk 0:04:29]}  Bg4 {[%clk 0:05:16]} 20. Rxa2 {[%clk 0:04:38]}  Bxd1 {[%clk 0:05:25]} 21. Nb2 {[%clk 0:04:47]}  Be2 {[%clk 0:04:59]} 22. Rxa7+ {[%clk 0:06:46]}  Kd6 {[%clk 0:05:06]} 23. Rxf7 {[%clk 0:06:38]}  Ra8 {[%clk 0:03:59]} 24. Rxf6+ {[%clk 0:06:43]}  Ke7 {[%clk 0:04:08]} 25. d6+ {[%clk 0:04:38]}  Kxf6 {[%clk 0:04:15]} 26. Bxa8 {[%clk 0:03:55]}  Bxd6 {[%clk 0:04:24]} 27. Na4 {[%clk 0:05:08]}  Bd3 {[%clk 0:03:34]} 28. Nc3 {[%clk 0:05:15]}  h6 {[%clk 0:03:42]} 29. Be4 {[%clk 0:05:01]}  Ba6 {[%clk 0:03:49]} 30. Kg2 {[%clk 0:05:14]}  Bc5 {[%clk 0:03:50]} 31. Nd5+ {[%clk 0:03:34]}  Kf7 {[%clk 0:03:55]} 32. Nc7 {[%clk 0:03:25]}  Bc8 {[%clk 0:03:58]} 33. f3 {[%clk 0:03:07]}  Bb6 {[%clk 0:04:00]} 34. Nd5 {[%clk 0:03:09]}  Bc5 {[%clk 0:04:05]} 35. g4 {[%clk 0:03:13]}  Be6 {[%clk 0:04:07]} 36. Nc3 {[%clk 0:03:52]}  Bb4 {[%clk 0:04:14]} 37. Ne2 {[%clk 0:03:52]}  Kf6 {[%clk 0:03:11]} 38. h4 {[%clk 0:01:20]}  Be1 {[%clk 0:03:18]} 39. Ng3 {[%clk 0:01:29]}  Bc4 {[%clk 0:03:26]} 40. g5+ {[%clk 0:00:54]}  hxg5 {[%clk 0:01:43]} 41. Nh5+ {[%clk 0:00:18]}  Ke7 {[%clk 0:01:52]} 42. hxg5 {[%clk 0:00:08]}  Bd2 {[%clk 0:01:41]} 43. g6 {[%clk 0:00:16]}  Bh6 {[%clk 0:01:49]} 44. Kg3 {[%clk 0:00:21]}  Be6 {[%clk 0:01:45]} 45. Kh4 {[%clk 0:02:14]}  Bd2 {[%clk 0:01:29]} 46. Kg3 {[%clk 0:01:31]}  Bh6 {[%clk 0:01:35]} 47. Kf2 {[%clk 0:01:32]}  Bc4 {[%clk 0:01:42]} 48. Bf5 {[%clk 0:01:38]}  Bb3 {[%clk 0:01:11]} 49. Kg3 {[%clk 0:01:36]}  Bc4 {[%clk 0:01:19]} 50. Kg4 {[%clk 0:01:45]}  Bb3 {[%clk 0:01:24]} 51. Ng3 {[%clk 0:01:36]}  Bf4 {[%clk 0:01:15]} 52. Ne4 {[%clk 0:01:12]}  Bd5 {[%clk 0:01:13]} 53. Nc3 {[%clk 0:00:58]}  Bc4 {[%clk 0:01:14]} 54. Ne4 {[%clk 0:00:15]}  Bd5 {[%clk 0:01:21]} 55. Nc5 {[%clk 0:00:23]}  Be3 {[%clk 0:00:54]} 56. Nd7 {[%clk 0:00:22]}  Bd4 {[%clk 0:00:52]} 57. g7 {[%clk 0:00:23]}  Bg8 {[%clk 0:00:51]} 58. Kg5 {[%clk 0:00:19]}  Kf7 {[%clk 0:00:44]} 59. Be4 {[%clk 0:00:04]}  Kxg7 {[%clk 0:00:49]} 60. Nf6 {[%clk 0:00:30]}  Be6 {[%clk 0:00:55]} 61. Ng4 {[%clk 0:00:37]}  Bxg4 {[%clk 0:01:04]} 62. fxg4 {[%clk 0:00:46]} 1/2-1/2

[Event "Champions Chess Tour FTX Crypto Cup Prelims 2021"]
[White "Svidler, Peter"]
[Black "Ding, Liren"]
[WhiteFideId "4102142"]
[BlackFideId "8603677"]
[WhiteElo "2714"]
[BlackElo "2799"]
[Result "1/2-1/2"]
[Round "10"]
[TimeControl "900+10"]
[Date "Mon May 24 2021"]
[WhiteClock "0:11:24"]
[BlackClock "0:12:36"]

1. Nf3 {[%clk 0:15:20]}  d5 {[%clk 0:15:20]} 2. g3 {[%clk 0:15:26]}  c5 {[%clk 0:15:18]} 3. Bg2 {[%clk 0:15:34]}  Nf6 {[%clk 0:15:26]} 4. O-O {[%clk 0:15:39]}  e6 {[%clk 0:00:00]} 5. d4 {[%clk 0:15:40]}  cxd4 {[%clk 0:00:06]} 6. Nxd4 {[%clk 0:15:47]}  e5 {[%clk 0:00:03]} 7. Nb3 {[%clk 0:15:56]}  Be6 {[%clk 0:00:04]} 8. c4 {[%clk 0:14:05]}  Nc6 {[%clk 0:14:09]} 9. cxd5 {[%clk 0:14:13]}  Nxd5 {[%clk 0:13:27]} 10. Bd2 {[%clk 0:14:16]}  Be7 {[%clk 0:13:32]} 11. Nc3 {[%clk 0:14:24]}  O-O {[%clk 0:12:51]} 12. Nxd5 {[%clk 0:11:15]}  Bxd5 {[%clk 0:10:36]} 13. Ba5 {[%clk 0:11:20]}  Bxb3 {[%clk 0:09:44]} 14. Bxd8 {[%clk 0:11:20]}  Bxd1 {[%clk 0:09:52]} 15. Bxe7 {[%clk 0:11:29]}  Bxe2 {[%clk 0:09:53]} 16. Bxf8 {[%clk 0:11:08]}  Bxf1 {[%clk 0:10:01]} 17. Bxc6 {[%clk 0:11:17]}  Kxf8 {[%clk 0:12:50]} 18. Bxb7 {[%clk 0:11:22]}  Rb8 {[%clk 0:12:59]} 19. Kxf1 {[%clk 0:11:09]}  Rxb7 {[%clk 0:13:07]} 20. b3 {[%clk 0:11:10]}  Rc7 {[%clk 0:12:25]} 21. Rd1 {[%clk 0:10:26]}  Rc2 {[%clk 0:12:19]} 22. Rd5 {[%clk 0:10:03]}  Rxa2 {[%clk 0:12:27]} 23. Rxe5 {[%clk 0:10:12]}  Rb2 {[%clk 0:12:32]} 24. Ra5 {[%clk 0:10:21]}  Rxb3 {[%clk 0:12:41]} 25. Rxa7 {[%clk 0:10:30]}  g6 {[%clk 0:12:50]} 26. h4 {[%clk 0:10:39]}  h5 {[%clk 0:12:59]} 27. Kg2 {[%clk 0:10:48]}  Kg7 {[%clk 0:13:08]} 28. Ra8 {[%clk 0:10:57]}  Rb2 {[%clk 0:13:15]} 29. Ra7 {[%clk 0:11:06]}  Rb3 {[%clk 0:13:24]} 30. Ra8 {[%clk 0:11:15]}  Rb2 {[%clk 0:12:28]} 31. Ra7 {[%clk 0:11:24]}  Rb3 {[%clk 0:12:36]} 1/2-1/2

[Event "FIDE American World Cup Qualification Tournament 2021"]
[White "Valdes Romero, Leonardo"]
[Black "Curi, Gabriel"]
[WhiteFideId "6500331"]
[BlackFideId "3000400"]
[WhiteElo "2402"]
[BlackElo "2154"]
[Result "1-0"]
[Round "01-02"]
[TimeControl "7200+30"]
[Date "Sun May 23 2021"]
[WhiteClock "0:05:24"]
[BlackClock "0:07:32"]

1. Nf3 {[%clk 0:00:00]}  d5 {[%clk 2:00:20]} 2. g3 {[%clk 1:44:39]}  c5 {[%clk 2:00:27]} 3. Bg2 {[%clk 1:44:22]}  Nc6 {[%clk 2:00:47]} 4. d4 {[%clk 1:43:51]}  e6 {[%clk 2:01:01]} 5. O-O {[%clk 1:43:56]}  Nf6 {[%clk 2:01:25]} 6. a3 {[%clk 1:39:23]}  a6 {[%clk 1:51:40]} 7. dxc5 {[%clk 1:26:52]}  Bxc5 {[%clk 1:52:02]} 8. b4 {[%clk 1:31:13]}  Ba7 {[%clk 1:52:23]} 9. c4 {[%clk 1:27:11]}  O-O {[%clk 1:50:51]} 10. Bb2 {[%clk 1:26:59]}  Qe7 {[%clk 1:46:52]} 11. Nbd2 {[%clk 0:46:23]}  Rd8 {[%clk 1:38:40]} 12. cxd5 {[%clk 0:58:07]}  exd5 {[%clk 1:34:51]} 13. Nb3 {[%clk 1:02:08]}  Ne4 {[%clk 1:17:56]} 14. Nbd4 {[%clk 0:59:33]}  Be6 {[%clk 1:01:48]} 15. Rc1 {[%clk 0:44:33]}  Rac8 {[%clk 1:00:42]} 16. Nxc6 {[%clk 0:38:20]}  bxc6 {[%clk 1:00:04]} 17. Nd4 {[%clk 0:44:48]}  c5 {[%clk 0:56:29]} 18. bxc5 {[%clk 0:42:15]}  Bxc5 {[%clk 0:53:30]} 19. Qd3 {[%clk 0:41:29]}  Nd6 {[%clk 0:45:32]} 20. Ba1 {[%clk 0:27:37]}  Nc4 {[%clk 0:42:30]} 21. a4 {[%clk 0:33:58]}  Qd7 {[%clk 0:40:57]} 22. Nxe6 {[%clk 0:32:22]}  fxe6 {[%clk 0:28:23]} 23. Bh3 {[%clk 0:21:22]}  Qf7 {[%clk 0:26:53]} 24. e4 {[%clk 0:09:49]}  Qg6 {[%clk 0:18:46]} 25. Qe2 {[%clk 0:17:05]}  Rc6 {[%clk 0:16:38]} 26. exd5 {[%clk 0:08:58]}  exd5 {[%clk 0:16:41]} 27. Bg2 {[%clk 0:09:17]}  Rcd6 {[%clk 0:08:20]} 28. Rxc4 {[%clk 0:00:00]}  Re6 {[%clk 0:07:32]} 29. Qd1 {[%clk 0:05:24]} 1-0

[Event "Champions Chess Tour FTX Crypto Cup Knockout 2021"]
[White "Nepomniachtchi, Ian"]
[Black "So, Wesley"]
[WhiteFideId "4168119"]
[BlackFideId "5202213"]
[WhiteElo "2778"]
[BlackElo "2741"]
[Result "1/2-1/2"]
[Round "04-02"]
[TimeControl "900+10"]
[Date "Fri May 28 2021"]
[WhiteClock "0:10:45"]
[BlackClock "0:10:45"]

1. Nf3 {[%clk 0:15:20]}  d5 {[%clk 0:15:20]} 2. g3 {[%clk 0:15:28]}  c5 {[%clk 0:15:02]} 3. Bg2 {[%clk 0:15:29]}  Nc6 {[%clk 0:15:06]} 4. d4 {[%clk 0:15:34]}  Nf6 {[%clk 0:15:15]} 5. O-O {[%clk 0:15:41]}  e6 {[%clk 0:15:23]} 6. c4 {[%clk 0:15:42]}  dxc4 {[%clk 0:00:00]} 7. Ne5 {[%clk 0:15:33]}  Bd7 {[%clk 0:00:06]} 8. Na3 {[%clk 0:15:28]}  cxd4 {[%clk 0:00:02]} 9. Naxc4 {[%clk 0:15:37]}  Be7 {[%clk 0:15:21]} 10. Qb3 {[%clk 0:15:30]}  Qc7 {[%clk 0:14:36]} 11. Bf4 {[%clk 0:14:57]}  Nh5 {[%clk 0:14:38]} 12. Nxc6 {[%clk 0:10:53]}  Nxf4 {[%clk 0:10:42]} 13. Nxe7 {[%clk 0:10:59]}  Nxg2 {[%clk 0:10:24]} 14. Rac1 {[%clk 0:10:08]}  Kxe7 {[%clk 0:09:47]} 15. Qa3+ {[%clk 0:10:15]}  Kf6 {[%clk 0:09:37]} 16. Qf3+ {[%clk 0:10:23]}  Ke7 {[%clk 0:10:36]} 17. Qa3+ {[%clk 0:10:30]}  Kf6 {[%clk 0:10:38]} 18. Qf3+ {[%clk 0:10:37]}  Ke7 {[%clk 0:10:45]} 19. Qa3+ {[%clk 0:10:45]} 1/2-1/2

[Event "Women's Speed Chess Championship - Qualifier 2 2021"]
[White "Dordzhieva, Dinara"]
[Black "Mahalakshmi, M"]
[WhiteFideId "24157570"]
[BlackFideId "5001080"]
[WhiteElo "2260"]
[BlackElo "2176"]
[Result "0-1"]
[Round "06"]
[TimeControl "180+1"]
[Date "Sat May 29 2021"]
[WhiteClock "0:00:09"]
[BlackClock "0:00:20"]

1. Nf3 {[%clk 0:00:16]}  d5 {[%clk 0:02:58]} 2. g3 {[%clk 0:00:17]}  c5 {[%clk 0:02:57]} 3. Bg2 {[%clk 0:00:18]}  Nc6 {[%clk 0:02:57]} 4. O-O {[%clk 0:00:18]}  Nf6 {[%clk 0:02:58]} 5. d4 {[%clk 0:00:18]}  cxd4 {[%clk 0:02:56]} 6. Nxd4 {[%clk 0:00:19]}  e5 {[%clk 0:02:56]} 7. Nxc6 {[%clk 0:00:20]}  bxc6 {[%clk 0:02:57]} 8. c4 {[%clk 0:00:20]}  Be6 {[%clk 0:02:56]} 9. Nc3 {[%clk 0:00:21]}  Be7 {[%clk 0:02:53]} 10. Bg5 {[%clk 0:00:21]}  e4 {[%clk 0:02:50]} 11. cxd5 {[%clk 0:00:21]}  cxd5 {[%clk 0:02:50]} 12. Qd4 {[%clk 0:00:21]}  O-O {[%clk 0:02:48]} 13. Rad1 {[%clk 0:00:21]}  Rb8 {[%clk 0:02:47]} 14. b3 {[%clk 0:00:21]}  h6 {[%clk 0:02:46]} 15. Bf4 {[%clk 0:00:21]}  Rb4 {[%clk 0:02:45]} 16. Qd2 {[%clk 0:00:20]}  Qa5 {[%clk 0:02:38]} 17. Na4 {[%clk 0:00:20]}  Rd8 {[%clk 0:02:26]} 18. Be5 {[%clk 0:00:20]}  Rb5 {[%clk 0:01:54]} 19. Bc3 {[%clk 0:00:21]}  Qa6 {[%clk 0:01:51]} 20. Rc1 {[%clk 0:00:20]}  Ba3 {[%clk 0:01:49]} 21. Rc2 {[%clk 0:00:19]}  Bf5 {[%clk 0:01:48]} 22. Bd4 {[%clk 0:00:20]}  e3 {[%clk 0:01:47]} 23. Bxe3 {[%clk 0:00:20]}  Bxc2 {[%clk 0:01:47]} 24. Qxc2 {[%clk 0:00:20]}  d4 {[%clk 0:01:47]} 25. Bf4 {[%clk 0:00:20]}  Bd6 {[%clk 0:01:47]} 26. Bxd6 {[%clk 0:00:20]}  Qxd6 {[%clk 0:01:47]} 27. Qd3 {[%clk 0:00:20]}  Re5 {[%clk 0:01:45]} 28. Rd1 {[%clk 0:00:21]}  Qe7 {[%clk 0:01:42]} 29. Bf3 {[%clk 0:00:21]}  g5 {[%clk 0:01:39]} 30. Nb2 {[%clk 0:00:21]}  g4 {[%clk 0:01:39]} 31. Nc4 {[%clk 0:00:21]}  gxf3 {[%clk 0:01:35]} 32. Nxe5 {[%clk 0:00:21]}  Qxe5 {[%clk 0:01:35]} 33. Qxf3 {[%clk 0:00:20]}  Kg7 {[%clk 0:01:30]} 34. Rd2 {[%clk 0:00:20]}  Qe4 {[%clk 0:01:26]} 35. Qxe4 {[%clk 0:00:16]}  Nxe4 {[%clk 0:01:26]} 36. Rd3 {[%clk 0:00:17]}  Nc3 {[%clk 0:01:14]} 37. e3 {[%clk 0:00:17]}  Nxa2 {[%clk 0:01:15]} 38. exd4 {[%clk 0:00:17]}  Nb4 {[%clk 0:01:15]} 39. Rd2 {[%clk 0:00:17]}  Rd5 {[%clk 0:01:13]} 40. Ra2 {[%clk 0:00:17]}  a6 {[%clk 0:01:12]} 41. Ra4 {[%clk 0:00:17]}  Rxd4 {[%clk 0:01:11]} 42. Kg2 {[%clk 0:00:15]}  Kf6 {[%clk 0:01:11]} 43. Kf3 {[%clk 0:00:15]}  Ke6 {[%clk 0:01:11]} 44. Ra5 {[%clk 0:00:15]}  Rd3+ {[%clk 0:01:07]} 45. Ke4 {[%clk 0:00:15]}  Rxb3 {[%clk 0:01:07]} 46. Rh5 {[%clk 0:00:16]}  f6 {[%clk 0:01:04]} 47. Rxh6 {[%clk 0:00:16]}  a5 {[%clk 0:01:03]} 48. g4 {[%clk 0:00:16]}  Nd5 {[%clk 0:00:46]} 49. g5 {[%clk 0:00:15]}  a4 {[%clk 0:00:45]} 50. g6 {[%clk 0:00:15]}  a3 {[%clk 0:00:38]} 51. g7 {[%clk 0:00:14]}  Kf7 {[%clk 0:00:36]} 52. Rg6 {[%clk 0:00:15]}  Ne7 {[%clk 0:00:31]} 53. Rg1 {[%clk 0:00:13]}  a2 {[%clk 0:00:29]} 54. Ra1 {[%clk 0:00:14]}  Ra3 {[%clk 0:00:29]} 55. f4 {[%clk 0:00:13]}  Kxg7 {[%clk 0:00:29]} 56. f5 {[%clk 0:00:14]}  Ra4+ {[%clk 0:00:28]} 57. Kd3 {[%clk 0:00:14]}  Nxf5 {[%clk 0:00:28]} 58. Kc3 {[%clk 0:00:14]}  Kg6 {[%clk 0:00:27]} 59. Kb3 {[%clk 0:00:14]}  Ra7 {[%clk 0:00:27]} 60. h3 {[%clk 0:00:14]}  Kh5 {[%clk 0:00:26]} 61. Kc4 {[%clk 0:00:11]}  Ng7 {[%clk 0:00:20]} 62. Kd5 {[%clk 0:00:12]}  Kh4 {[%clk 0:00:20]} 63. Ke4 {[%clk 0:00:12]}  Ra4+ {[%clk 0:00:19]} 64. Kf3 {[%clk 0:00:12]}  f5 {[%clk 0:00:20]} 65. Kf2 {[%clk 0:00:10]}  f4 {[%clk 0:00:20]} 66. Kf3 {[%clk 0:00:11]}  Ne6 {[%clk 0:00:20]} 67. Kf2 {[%clk 0:00:11]}  Ra3 {[%clk 0:00:20]} 68. Ke2 {[%clk 0:00:10]}  f3+ {[%clk 0:00:20]} 69. Kf2 {[%clk 0:00:11]}  Kxh3 {[%clk 0:00:20]} 70. Rg1 {[%clk 0:00:09]}  a1=Q {[%clk 0:00:19]} 71. Rg3+ {[%clk 0:00:10]}  Kh4 {[%clk 0:00:19]} 72. Rg4+ {[%clk 0:00:10]}  Kh5 {[%clk 0:00:18]} 73. Rg5+ {[%clk 0:00:11]}  Kh6 {[%clk 0:00:17]} 74. Rg6+ {[%clk 0:00:11]}  Kh7 {[%clk 0:00:18]} 75. Rh6+ {[%clk 0:00:10]}  Kg8 {[%clk 0:00:18]} 76. Rg6+ {[%clk 0:00:10]}  Qg7 {[%clk 0:00:17]} 77. Rxg7+ {[%clk 0:00:08]}  Kxg7 {[%clk 0:00:17]} 78. Kg3 {[%clk 0:00:08]}  Kf6 {[%clk 0:00:18]} 79. Kf2 {[%clk 0:00:08]}  Kf5 {[%clk 0:00:18]} 80. Kg3 {[%clk 0:00:09]}  Ke4 {[%clk 0:00:19]} 81. Kf2 {[%clk 0:00:09]}  Kf4 {[%clk 0:00:19]} 82. Kf1 {[%clk 0:00:09]}  Ra2 {[%clk 0:00:20]} 0-1